bitfinex/quotes_ETHUSD_20220115
["timestamp","ask_amount","ask_price","bid_price","bid_amount"]
[1642238414377,0.3164,3318.8,3318.2,0.01023162]
[1642238414978,2.04341857,3318.9,3318.2,0.01023162]
[1642238417729,0.9356,3318.9,3318.2,0.01023162]
[1642238418030,1.2009,3319.7,3318.3,0.045463]
[1642238418228,3.77390988,3319.8,3318.8,0.045463]
[1642238418428,0.37437918,3319.9,3319.1,0.045463]
[1642238418827,0.37437918,3319.9,3319.3,1.11537428]
[1642238419077,0.37437918,3319.9,3319.4,1.16969251]
[1642238419471,0.37437918,3319.9,3319.5,0.00284212]
[1642238422474,1.74262019,3319.9,3319.5,0.00284212]
[1642238423623,4.74262019,3319.9,3319.5,0.00284212]
[1642238426583,3.0,3319.9,3319.5,0.00284212]
[1642238426778,3.0,3319.9,3319.7,0.045463]
[1642238427178,3.0,3319.9,3319.8,0.00113684]
[1642238429583,3.0,3319.9,3319.5,0.00284212]
[1642238433029,3.0,3319.9,3319.5,2.57844868]
[1642238433428,3.0,3319.9,3319.6,0.00227369]
[1642238434382,3.0,3319.9,3319.5,0.00284212]
[1642238434985,1.31233717,3319.8,3319.5,0.00284212]
[1642238436085,3.0,3319.9,3319.5,0.00284212]
[1642238437924,3.0,3319.9,3319.6,0.045463]
[1642238438325,3.0,3319.9,3319.7,0.00170527]
[1642238438526,2.95,3319.9,3319.7,0.00170527]
[1642238449979,2.95,3319.9,3319.7,0.04716827]
[1642238450384,2.95,3319.9,3319.8,0.00113684]
[1642238458278,2.95,3319.9,3319.7,0.00170527]
[1642238458487,2.95,3319.9,3319.6,0.00227369]
[1642238458880,2.95,3319.9,3319.6,0.04773669]
[1642238459280,2.95,3319.9,3319.7,0.00170527]
[1642238460180,2.86969328,3319.9,3319.7,0.00170527]
[1642238461030,2.86969328,3319.9,3319.6,0.00227369]
[1642238462627,2.86969328,3319.9,3319.6,2.57768688]
[1642238463026,2.86969328,3319.9,3319.7,0.00170527]
[1642238466581,2.86969328,3319.9,3319.5,0.00284212]
[1642238467183,3.62306328,3319.9,3319.5,0.00284212]
[1642238467824,3.27306328,3319.9,3319.5,0.00284212]
[1642238468525,2.51969328,3319.9,3319.5,0.00284212]
[1642238468729,2.51969328,3319.9,3319.5,0.04830512]
[1642238469126,2.51969328,3319.9,3319.6,0.00227369]
[1642238473478,2.51969328,3319.9,3319.4,5.468963]
[1642238473479,2.51969328,3319.9,3319.5,0.00284212]
[1642238477736,2.51969328,3319.9,3319.8,0.045463]
[1642238478133,2.51969328,3319.9,3319.8,0.04659984]
[1642238482385,2.47679328,3319.9,3319.8,0.04659984]
[1642238484626,2.47679328,3319.9,3319.8,4.01470228]
[1642238484826,2.47679328,3319.9,3319.8,3.54913641]
[1642238485429,2.47679328,3319.9,3319.8,6.12442989]
[1642238486431,2.47679328,3319.9,3319.8,4.73163448]
[1642238486885,2.47679328,3319.9,3319.8,2.62189332]
[1642238487076,2.47679328,3319.9,3319.8,4.49311818]
[1642238487277,2.47679328,3319.9,3319.8,4.48910675]
[1642238488478,2.47679328,3319.9,3319.8,2.57643032]
[1642238489082,2.47679328,3319.9,3319.8,0.00113684]
[1642238489487,2.47679328,3319.9,3319.6,0.04773669]
[1642238489883,2.47679328,3319.9,3319.7,0.00170527]
[1642238492533,2.47679328,3319.9,3319.6,0.00227369]
[1642238492833,2.47679328,3319.9,3319.5,0.00284212]
[1642238493635,2.47679328,3319.9,3319.7,0.045463]
[1642238493835,2.47679328,3319.9,3319.7,0.090926]
[1642238494087,2.47679328,3319.9,3319.8,0.00113684]
[1642238495079,2.47679328,3319.9,3319.5,0.00284212]
[1642238496080,2.47679328,3319.9,3319.6,0.045463]
[1642238496282,2.47679328,3319.9,3319.7,0.045463]
[1642238496481,2.47679328,3319.9,3319.7,0.04716827]
[1642238496683,2.47679328,3319.9,3319.8,0.00113684]
[1642238497385,2.47679328,3319.9,3319.5,0.00284212]
[1642238499033,2.47679328,3319.9,3319.5,0.04830512]
[1642238499434,2.47679328,3319.9,3319.8,0.090926]
[1642238499834,2.47679328,3319.9,3319.8,0.09206284]
[1642238500936,2.47679328,3319.9,3319.8,0.04659984]
[1642238502879,2.47679328,3319.9,3319.8,0.00113684]
[1642238503477,2.47679328,3319.9,3319.7,0.045463]
[1642238503680,2.47679328,3319.9,3319.8,0.00113684]
[1642238505429,2.42679328,3319.9,3319.7,0.00170527]
[1642238508429,2.42679328,3319.9,3319.8,0.045463]
[1642238508829,2.42679328,3319.9,3319.8,0.04659984]
[1642238509083,2.42679328,3319.9,3319.8,0.09206284]
[1642238509279,2.42679328,3319.9,3319.8,0.04659984]
[1642238510880,2.42679328,3319.9,3319.8,0.00113684]
[1642238511283,2.42679328,3319.9,3319.6,0.045463]
[1642238511284,2.42679328,3319.9,3319.7,0.00170527]
[1642238512084,2.42679328,3319.9,3319.6,0.00227369]
[1642238512285,2.42679328,3319.9,3319.5,0.04830512]
[1642238512484,2.42679328,3319.9,3319.6,0.00227369]
[1642238513326,2.42679328,3319.9,3319.6,0.04773669]
[1642238513727,2.42679328,3319.9,3319.7,0.00170527]
[1642238514327,2.42679328,3319.9,3319.7,0.04716827]
[1642238514729,2.42679328,3319.9,3319.8,0.00113684]
[1642238514930,2.42679328,3319.9,3319.8,0.04659984]
[1642238515330,2.42679328,3319.9,3319.8,2.99659984]
[1642238515534,2.42679328,3319.9,3319.8,5.02811611]
[1642238516584,2.42679328,3319.9,3319.8,6.53703721]
[1642238519985,2.42679328,3319.9,3319.8,9.15771259]
[1642238528935,2.42679328,3319.9,3319.8,7.64879149]
[1642238529535,2.42679328,3319.9,3319.8,2.57634922]
[1642238529835,3.82683537,3319.9,3319.8,2.57634922]
[1642238533086,6.12683537,3319.9,3319.8,2.57634922]
[1642238533585,3.82683537,3319.9,3319.8,2.57634922]
[1642238534180,3.82683537,3319.9,3319.8,0.00113684]
[1642238534381,4.58022537,3319.9,3319.8,0.00113684]
[1642238534581,4.58022537,3319.9,3319.3,0.04944196]
[1642238535335,3.82683537,3319.9,3319.3,2.62465434]
[1642238536339,3.82683537,3319.9,3319.4,2.57521238]
[1642238536739,4.58018537,3319.9,3319.5,0.00284212]
[1642238542593,0.75347,3319.8,3319.5,0.00284212]
[1642238542841,0.75353,3319.4,3318.7,0.045463]
[1642238543040,1.17758518,3319.2,3318.5,0.045463]
[1642238543240,1.17758518,3319.2,3318.2,5.42931594]
[1642238543241,2.18138518,3319.2,3318.2,5.42931594]
[1642238543442,0.00170527,3319.1,3318.6,0.00113685]
[1642238543847,1.2420453,3318.9,3318.4,0.00227369]
[1642238544043,0.75376,3318.7,3318.3,0.04830512]
[1642238544242,0.75376,3318.7,3318.4,0.00227369]
[1642238544543,0.75376,3318.7,3318.3,0.00284212]
[1642238545043,0.75376,3318.7,3318.2,0.00341054]
[1642238545445,0.75376,3318.7,3318.4,2.57668297]
[1642238545844,1.2420453,3318.9,3318.5,0.00170527]
[1642238547483,1.0920453,3318.9,3318.5,0.00170527]
[1642238547685,0.7536,3318.7,3318.5,0.00170527]
[1642238549586,3.7536,3318.7,3318.2,0.00341054]
[1642238550441,0.75378,3318.5,3318.2,0.00341054]
[1642238550636,0.75378,3318.5,3317.8,6.255463]
[1642238550637,5.55,3318.3,3317.8,6.21]
[1642238550835,5.55,3318.3,3317.9,0.00170527]
[1642238551237,1.12772878,3318.2,3317.6,0.00341054]
[1642238551642,0.00113685,3318.4,3317.9,0.045463]
[1642238551843,0.00113685,3318.4,3318.3,5.25803804]
[1642238552038,0.00113685,3318.4,3318.3,7.35260366]
[1642238552237,0.00113685,3318.4,3318.3,5.25803804]
[1642238552940,0.00113685,3318.4,3318.3,0.05803804]
[1642238553138,0.00113685,3318.4,3318.3,2.58886079]
[1642238553539,0.00113685,3318.4,3318.3,2.57628575]
[1642238553943,3.15113685,3318.4,3318.3,2.57628575]
[1642238554185,4.65871685,3318.4,3318.3,2.57628575]
[1642238555086,0.00113685,3318.4,3318.3,2.57628575]
[1642238556090,0.00113685,3318.4,3318.0,0.04659985]
[1642238556995,0.00113685,3318.4,3318.0,0.00113685]
[1642238558639,0.00113685,3318.4,3318.0,0.04659985]
[1642238559645,0.00113685,3318.4,3318.1,0.045463]
[1642238561685,0.00113685,3318.4,3318.0,0.04659985]
[1642238561686,0.00113685,3318.4,3318.0,0.00113685]
[1642238561888,0.75484685,3318.4,3318.0,0.00113685]
[1642238562085,0.75484685,3318.4,3317.8,0.00227369]
[1642238562487,0.75484685,3318.4,3317.7,0.04830512]
[1642238562887,0.75484685,3318.4,3317.8,0.00227369]
[1642238563287,1.12529497,3318.0,3317.8,0.00227369]
[1642238565190,0.75484685,3318.4,3317.8,0.00227369]
[1642238565435,0.75484685,3318.4,3317.8,0.04773669]
[1642238565631,0.75484685,3318.4,3317.8,1.37672714]
[1642238566734,1.5443762,3318.3,3317.8,0.04773669]
[1642238567032,1.5443762,3318.3,3317.9,2.57685267]
[1642238567435,1.5443762,3318.3,3318.0,0.00113685]
[1642238568633,1.5443762,3318.3,3318.1,0.045463]
[1642238568833,1.5443762,3318.3,3318.0,0.00113685]
[1642238569486,4.5443762,3318.3,3318.0,0.00113685]
[1642238573632,4.2143762,3318.3,3318.0,0.00113685]
[1642238578688,2.2614786,3318.2,3318.0,0.00113685]
[1642238579690,0.75382,3318.1,3318.0,0.00113685]
[1642238582238,4.2143762,3318.3,3318.0,0.04659985]
[1642238582439,4.2143762,3318.3,3318.1,0.045463]
[1642238582639,4.2143762,3318.3,3318.0,0.04659985]
[1642238582842,4.2143762,3318.3,3318.0,0.09206285]
[1642238583040,4.2143762,3318.3,3318.0,0.04659985]
[1642238583439,4.2143762,3318.3,3318.0,0.00113685]
[1642238583640,5.7219862,3318.3,3318.0,0.00113685]
[1642238583839,5.7219862,3318.3,3317.9,0.045463]
[1642238584090,4.2143762,3318.3,3317.9,0.090926]
[1642238584285,4.2143762,3318.3,3318.0,0.00113685]
[1642238585590,4.2143762,3318.3,3318.0,0.04659985]
[1642238585790,4.2143762,3318.3,3318.0,0.09206285]
[1642238586189,3.0,3318.3,3318.0,0.13752585]
[1642238586390,3.0,3318.3,3318.1,0.045463]
[1642238586589,3.0,3318.3,3318.2,3.045463]
[1642238587390,3.0,3318.3,3318.2,0.045463]
[1642238590241,3.0,3318.3,3318.0,0.04659985]
[1642238591041,3.0,3318.3,3318.0,0.09206285]
[1642238591242,3.0,3318.3,3318.0,0.04659985]
[1642238591686,3.0,3318.3,3318.0,0.09206285]
[1642238595639,3.0,3318.3,3318.0,0.04659985]
[1642238595841,3.0,3318.3,3318.0,0.00113685]
[1642238596742,3.0,3318.3,3318.0,0.04659985]
[1642238597141,3.0,3318.3,3318.0,0.00113685]
[1642238602291,5.1384453,3318.3,3318.0,0.00113685]
[1642238602490,6.69511874,3318.3,3318.0,0.00113685]
[1642238603335,5.18594987,3318.3,3318.0,0.00113685]
[1642238603535,3.0,3318.3,3318.0,0.00113685]
[1642238606341,3.75383,3318.3,3318.0,0.00113685]
[1642238613442,0.052424,3318.1,3316.9,1.33909997]
[1642238613644,1.5078517,3317.9,3316.9,1.33909997]
[1642238613838,1.5078517,3317.9,3317.5,0.00284211]
[1642238614494,1.18273906,3317.8,3317.5,0.00284211]
[1642238615493,0.75392,3317.7,3317.5,0.00284211]
[1642238617947,0.7539551,3317.6,3317.0,0.00568423]
[1642238618450,1.41542583,3317.2,3317.0,0.00568423]
[1642238618847,1.41542583,3317.2,3317.1,2.5776532]
[1642238619251,1.41542583,3317.2,3317.1,2.58276901]
[1642238620451,4.41542583,3317.2,3317.1,2.58276901]
[1642238625737,3.0,3317.2,3317.1,2.58276901]
[1642238626139,3.0,3317.2,3317.1,6.83276901]
[1642238626338,3.0,3317.2,3317.1,8.68315311]
[1642238626843,3.0,3317.2,3317.1,9.87085467]
[1642238627639,3.0,3317.2,3317.1,8.68315311]
[1642238628142,3.0,3317.2,3317.1,4.43315311]
[1642238629101,4.19911879,3317.2,3317.1,2.58276901]
[1642238632001,4.19911879,3317.2,3317.1,5.08276901]
[1642238632196,3.0,3317.2,3317.1,5.08276901]
[1642238632397,3.0,3317.2,3317.1,6.95439482]
[1642238637489,3.0,3317.2,3317.1,6.94509025]
[1642238638092,3.0,3317.2,3317.1,2.58276901]
[1642238642043,3.0,3317.2,3317.1,5.13276901]
[1642238643044,3.0,3317.2,3317.1,2.58276901]
[1642238643245,3.0,3317.2,3317.1,4.4164301]
[1642238643445,2.95,3317.2,3317.1,2.58276901]
[1642238644292,2.95,3317.2,3317.1,4.4102713]
[1642238644492,2.95,3317.2,3317.1,2.58276901]
[1642238649245,2.95,3317.2,3317.1,2.5776532]
[1642238650648,2.95,3317.2,3317.0,2.5776532]
[1642238651892,2.95,3317.2,3317.1,2.5776532]
[1642238652290,4.16513277,3317.2,3317.1,2.5776532]
[1642238652491,5.67321087,3317.2,3316.8,5.1995]
[1642238652892,5.67321087,3317.2,3316.9,0.00625266]
[1642238656543,0.045463,3317.1,3316.9,0.00625266]
[1642238656942,1.26129226,3317.0,3316.9,0.00625266]
[1642238657347,1.26129226,3317.0,3316.6,0.00795793]
[1642238658442,1.26129226,3317.0,3316.7,2.57783883]
[1642238658843,1.26129226,3317.0,3316.8,0.00682108]
[1642238660092,1.26129226,3317.0,3316.9,2.57783883]
[1642238676404,1.26129226,3317.0,3316.8,0.00682108]
[1642238676804,1.26129226,3317.0,3316.6,0.00795793]
[1642238684996,1.26129226,3317.0,3316.7,2.57773392]
[1642238685454,1.26129226,3317.0,3316.8,0.00682108]
[1642238685952,1.26129226,3317.0,3316.8,1.79184665]
[1642238686151,1.26129226,3317.0,3316.8,1.85310605]
[1642238686352,1.26129226,3317.0,3316.8,0.00682108]
[1642238686955,1.26129226,3317.0,3316.9,2.57773392]
[1642238691201,0.045463,3317.1,3316.9,4.53700766]
[1642238691402,2.95,3317.2,3317.0,2.17632504]
[1642238691600,2.95,3317.2,3317.0,2.18200927]
[1642238691800,2.95,3317.2,3317.1,0.00511581]
[1642238692402,4.10675494,3317.2,3317.1,0.00511581]
[1642238692600,4.10675494,3317.2,3317.0,1.76102544]
[1642238692601,4.10675494,3317.2,3317.0,1.76670967]
[1642238692850,4.10675494,3317.2,3317.1,2.58284973]
[1642238693153,4.10675494,3317.2,3317.1,4.47999778]
[1642238693752,4.10675494,3317.2,3317.1,2.58284973]
[1642238693951,4.10675494,3317.2,3317.1,4.42965134]
[1642238694154,4.10675494,3317.2,3317.1,2.58284973]
[1642238695151,4.10675494,3317.2,3317.1,4.42309531]
[1642238695953,4.10675494,3317.2,3317.1,4.40807797]
[1642238696154,4.10675494,3317.2,3317.1,4.4077925]
[1642238696455,4.10675494,3317.2,3317.1,2.58284973]
[1642238698201,4.10675494,3317.2,3317.1,4.40284245]
[1642238698402,4.10675494,3317.2,3317.1,4.40870545]
[1642238698598,4.10675494,3317.2,3317.1,2.58284973]
[1642238699804,4.10675494,3317.2,3317.1,4.42682839]
[1642238700744,4.10675494,3317.2,3317.1,2.58284973]
[1642238700946,4.10675494,3317.2,3317.1,4.42050438]
[1642238701346,4.10675494,3317.2,3317.1,2.58284973]
[1642238706896,4.10675494,3317.2,3317.1,4.4376993]
[1642238707096,4.10675494,3317.2,3317.1,2.58284973]
[1642238708349,4.15221794,3317.2,3317.1,2.58284973]
[1642238709550,4.10675494,3317.2,3317.1,2.58284973]
[1642238709948,4.10675494,3317.2,3317.1,0.00511581]
[1642238710449,4.10675494,3317.2,3316.8,0.00682108]
[1642238710849,4.10675494,3317.2,3316.6,0.00795793]
[1642238711050,4.15221794,3317.2,3316.6,0.00795793]
[1642238711997,4.15221794,3317.2,3316.7,2.57751962]
[1642238712196,4.15221794,3317.2,3316.8,2.02099126]
[1642238712397,4.15221794,3317.2,3316.8,2.02781234]
[1642238713696,4.15221794,3317.2,3316.9,2.57751962]
[1642238713897,4.15221794,3317.2,3317.0,1.85789948]
[1642238714097,4.15221794,3317.2,3317.0,1.86358371]
[1642238714297,4.15221794,3317.2,3317.1,0.00511581]
[1642238714599,2.95,3317.2,3317.1,0.00511581]
[1642238715200,2.95,3317.2,3317.1,2.58263543]
[1642238715458,2.95,3317.2,3317.1,4.71544816]
[1642238716152,2.95,3317.2,3317.1,7.43792854]
[1642238716352,2.95,3317.2,3317.1,8.94999816]
[1642238717154,2.95,3317.2,3317.1,11.52751778]
[1642238718155,2.95,3317.2,3317.1,10.01544816]
[1642238719199,2.95,3317.2,3317.1,11.23044163]
[1642238722301,2.95,3317.2,3317.1,10.01544816]
[1642238731656,1.19540385,3318.8,3317.2,0.47858941]
[1642238731855,0.045463,3318.4,3317.8,0.75343]
[1642238732052,0.00284212,3318.5,3317.9,3.73470679]
[1642238732251,0.00284212,3318.5,3318.4,5.05349434]
[1642238732453,0.045463,3318.9,3318.4,5.05349434]
[1642238732654,0.045463,3318.9,3318.4,6.19419434]
[1642238732853,0.00397897,3318.7,3318.4,6.19419434]
[1642238733254,0.00341054,3318.6,3318.4,6.19419434]
[1642238733469,0.00341054,3318.6,3318.5,4.42185115]
[1642238733658,0.045463,3318.8,3318.5,4.42185115]
[1642238733955,0.00397897,3318.7,3318.5,4.42185115]
[1642238734200,0.00397897,3318.7,3318.6,1.78508972]
[1642238734400,0.045463,3318.8,3318.6,1.78508972]
[1642238740455,0.045463,3318.8,3318.4,2.9606278]
[1642238741611,0.045463,3318.8,3318.5,2.57653676]
[1642238742200,1.47338967,3319.0,3318.5,2.57653676]
[1642238742201,0.045463,3318.7,3318.5,2.57653676]
[1642238742402,0.045463,3318.7,3318.4,1.1407]
[1642238742603,0.045463,3318.7,3318.2,7.8429]
[1642238742803,0.045463,3318.7,3318.2,3.8559]
[1642238744008,0.045463,3318.4,3318.1,3.6469]
[1642238744207,1.18387942,3318.2,3318.0,5.2102]
[1642238744406,1.22934242,3318.2,3318.0,5.2102]
[1642238750502,1.22934242,3318.2,3317.3,3.91587896]
[1642238750703,0.045463,3317.7,3317.3,0.00397896]
[1642238750903,0.045463,3317.6,3317.4,0.00341054]
[1642238751103,0.045463,3317.7,3317.3,0.00397896]
[1642238751501,1.4664196,3317.6,3317.3,0.00397896]
[1642238752201,1.4664196,3317.6,3316.9,10.1060312]
[1642238752202,1.4664196,3317.6,3317.0,0.00568423]
[1642238752401,0.045463,3317.5,3317.0,0.00568423]
[1642238752601,0.041863,3317.5,3317.0,0.00568423]
[1642238754951,0.041863,3317.5,3317.1,2.57734059]
[1642238755351,0.041863,3317.5,3317.2,0.00454738]
[1642238756603,0.00170527,3318.3,3317.2,0.00454738]
[1642238756903,1.22261186,3317.8,3317.3,2.57734059]
[1642238757300,0.045463,3317.7,3317.4,0.00341054]
[1642238758100,0.045463,3317.6,3317.4,0.00341054]
[1642238759405,0.045463,3317.6,3317.4,2.58075113]
[1642238759704,0.045463,3317.6,3317.5,0.00284211]
[1642238759901,1.22261186,3317.8,3317.5,0.00284211]
[1642238760100,0.045463,3317.7,3317.5,0.00284211]
[1642238760851,0.045463,3317.7,3317.1,0.00511581]
[1642238761052,1.22261186,3317.8,3317.5,2.57734059]
[1642238761053,0.045463,3317.6,3317.5,2.57734059]
[1642238761251,1.22261186,3317.8,3317.5,2.57734059]
[1642238761452,0.045463,3317.7,3317.5,2.5801827]
[1642238761652,0.045463,3317.7,3317.6,0.00227369]
[1642238762253,0.045463,3317.7,3317.3,0.00397896]
[1642238762853,0.045463,3317.7,3317.2,0.00454738]
[1642238763054,0.045463,3317.6,3317.2,0.00454738]
[1642238763256,0.045463,3317.6,3317.4,2.57734059]
[1642238763656,0.045463,3317.6,3317.5,0.00284211]
[1642238764503,0.045463,3317.6,3317.4,0.00341054]
[1642238764706,4.25,3317.5,3317.4,0.00341054]
[1642238764902,5.049393,3317.5,3317.4,0.00341054]
[1642238765302,5.049393,3317.5,3316.8,0.00682108]
[1642238765504,0.045463,3317.1,3316.8,0.00682108]
[1642238765703,0.045463,3317.0,3316.8,0.00682108]
[1642238766304,0.045463,3317.1,3316.6,0.00795793]
[1642238766603,0.045463,3317.0,3316.6,1.37209394]
[1642238767003,0.045463,3317.0,3316.7,0.0073895]
[1642238767851,5.00393,3317.5,3316.7,0.0073895]
[1642238767852,0.045463,3316.9,3316.7,0.0073895]
[1642238768052,0.045463,3316.9,3316.6,0.00795793]
[1642238769253,0.045463,3316.9,3316.7,1.37038671]
[1642238769553,0.045463,3317.0,3316.8,0.00682108]
[1642238769756,0.045463,3317.1,3316.8,0.00682108]
[1642238772306,3.045463,3317.1,3316.8,0.00682108]
[1642238778152,3.045463,3317.1,3316.7,0.0073895]
[1642238780503,3.045463,3317.1,3316.6,1.76427673]
[1642238780703,3.045463,3317.1,3316.7,0.0073895]
[1642238782608,3.045463,3317.1,3316.6,1.75632046]
[1642238782854,0.045463,3317.0,3316.6,1.75632046]
[1642238783053,0.045463,3317.0,3316.7,0.0073895]
[1642238783457,0.045463,3317.0,3316.6,1.77542126]
[1642238783854,0.045463,3317.0,3316.7,0.0073895]
[1642238784055,3.0,3317.1,3316.7,0.0073895]
[1642238784056,0.045463,3316.9,3316.7,0.0073895]
[1642238784257,0.045463,3317.0,3316.6,0.00795793]
[1642238784454,0.045463,3316.9,3316.6,1.75078394]
[1642238784656,0.045463,3316.9,3316.6,0.00795793]
[1642238784856,0.045463,3316.9,3316.7,0.0073895]
[1642238785056,0.045463,3316.9,3316.6,0.00795793]
[1642238785456,0.045463,3316.9,3316.6,1.75646157]
[1642238785655,0.045463,3316.9,3316.6,0.00795793]
[1642238785856,0.045463,3316.9,3316.7,0.0073895]
[1642238786056,0.045463,3316.9,3316.6,1.75599338]
[1642238786257,0.045463,3316.9,3316.6,1.74643172]
[1642238786458,0.045463,3316.9,3316.7,0.0073895]
[1642238787502,0.045463,3316.9,3316.6,0.00795793]
[1642238788905,0.045463,3316.9,3316.6,1.81799871]
[1642238789104,0.045463,3316.9,3316.6,1.77836259]
[1642238789305,0.045463,3316.9,3316.7,0.0073895]
[1642238789706,0.045463,3316.9,3316.7,2.58491542]
[1642238790104,0.045463,3316.9,3316.8,0.00682108]
[1642238790352,3.0,3317.1,3316.8,1.8017156]
[1642238790353,3.045463,3317.1,3316.8,1.8017156]
[1642238790557,1.53778105,3317.1,3316.8,1.8017156]
[1642238790753,1.53778105,3317.1,3316.8,0.00682108]
[1642238791254,1.53778105,3317.1,3316.8,2.584347]
[1642238791655,1.53778105,3317.1,3316.8,2.57752592]
[1642238798655,0.045463,3317.0,3316.8,2.57752592]
[1642238801061,1.53778105,3317.1,3316.8,2.57752592]
[1642238808860,1.53778105,3317.1,3316.9,1.80986063]
[1642238809319,1.49231805,3317.1,3317.0,2.70568423]
[1642238809505,1.49231805,3317.1,3317.0,4.5130033]
[1642238809705,1.49231805,3317.1,3317.0,4.53911166]
[1642238810110,1.49231805,3317.1,3317.0,4.41663758]
[1642238810304,1.49231805,3317.1,3317.0,2.58321015]
[1642238811906,1.53778105,3317.1,3317.0,2.58321015]
[1642238814356,1.49231805,3317.1,3317.0,2.58321015]
[1642238815156,1.53778105,3317.1,3317.0,2.58321015]
[1642238819414,1.53778105,3317.1,3316.5,0.08190282]
[1642238819415,0.75406,3316.9,3316.5,0.08190282]
[1642238819612,0.045463,3316.6,3316.0,1.52151776]
[1642238819812,5.55,3316.8,3316.6,0.0022737]
[1642238820012,5.55,3316.8,3316.0,1.26343276]
[1642238820013,5.55,3316.7,3316.0,1.26343276]
[1642238820214,0.045463,3316.1,3316.0,1.26343276]
[1642238820481,2.2630435,3316.1,3315.9,3.86628888]
[1642238820677,2.2630435,3316.1,3316.0,0.00341054]
[1642238821878,5.55,3316.0,3315.9,0.56190322]
[1642238822080,5.595463,3316.0,3315.9,0.56190322]
[1642238822281,5.595463,3316.0,3315.3,5.75700322]
[1642238822580,5.595463,3316.0,3314.9,5.98037664]
[1642238822581,5.1,3315.3,3314.9,2.28227664]
[1642238822783,0.045463,3315.0,3314.9,2.28227664]
[1642238822979,0.6899,3315.3,3315.0,0.00568423]
[1642238822980,0.045463,3315.2,3315.0,0.00568423]
[1642238823183,0.045463,3315.4,3315.0,0.00568423]
[1642238823379,1.184,3316.5,3315.0,0.00568423]
[1642238823380,0.045463,3315.5,3315.0,0.00568423]
[1642238823580,0.045463,3315.6,3315.0,0.00568423]
[1642238824204,3.045463,3315.6,3315.0,0.00568423]
[1642238824406,0.045463,3315.5,3315.0,0.00568423]
[1642238825002,3.0,3315.6,3315.0,0.00568423]
[1642238825003,0.045463,3315.3,3315.0,0.00568423]
[1642238825205,3.0,3315.6,3315.0,0.00568423]
[1642238825405,0.045463,3315.4,3315.0,0.00568423]
[1642238825607,4.445463,3315.1,3315.0,0.00568423]
[1642238825803,4.445463,3315.1,3314.9,0.00625265]
[1642238826004,4.4,3315.1,3314.9,0.00625265]
[1642238826204,0.045463,3315.0,3314.6,0.00795793]
[1642238826404,3.0,3315.6,3314.6,0.00795793]
[1642238826405,0.045463,3314.9,3314.6,1.41553847]
[1642238826606,0.045463,3314.8,3314.6,2.6842348]
[1642238826803,0.045463,3314.8,3314.7,0.0073895]
[1642238827205,0.045463,3315.0,3314.7,0.0073895]
[1642238827604,0.045463,3315.3,3314.7,0.0073895]
[1642238827853,0.045463,3315.4,3314.7,0.0073895]
[1642238828254,0.045463,3315.4,3314.7,0.7149895]
[1642238828454,0.045463,3315.4,3314.7,1.9110895]
[1642238828656,0.0022737,3316.4,3314.8,3.96722108]
[1642238828657,0.045463,3315.5,3314.8,3.96722108]
[1642238828853,0.045463,3315.5,3315.2,1.15249904]
[1642238829054,0.045463,3315.6,3315.3,1.2133]
[1642238829358,0.045463,3315.6,3315.4,0.00341054]
[1642238829554,0.045463,3315.7,3315.4,0.00341054]
[1642238829956,0.00284212,3316.5,3315.4,0.00341054]
[1642238829957,0.045463,3315.9,3315.4,0.91321054]
[1642238830256,0.045463,3316.0,3315.5,0.00284211]
[1642238830456,0.045463,3316.0,3315.5,2.24724551]
[1642238830754,0.045463,3316.0,3315.6,0.00227369]
[1642238830954,0.045463,3316.0,3315.6,5.0684334]
[1642238831154,0.045463,3316.0,3315.7,1.91784619]
[1642238831352,0.045463,3316.0,3315.7,1.91955146]
[1642238831609,0.045463,3316.0,3315.8,0.00113684]
[1642238833206,0.045463,3316.1,3315.8,0.00113684]
[1642238833407,3.0,3316.0,3315.8,0.00113684]
[1642238833706,3.045463,3316.0,3315.8,0.00113684]
[1642238833906,3.045463,3316.0,3315.9,1.12534907]
[1642238834305,3.0,3316.0,3315.9,3.00472875]
[1642238834512,3.0,3316.0,3315.9,3.91062875]
[1642238834708,3.0,3316.0,3315.9,7.81062875]
[1642238836352,3.0,3316.0,3315.9,8.56444875]
[1642238836753,3.0,3316.0,3315.9,7.81062875]
[1642238837955,3.0,3316.0,3315.9,8.56442875]
[1642238838354,0.045463,3316.3,3316.0,5.55]
[1642238838558,0.00284212,3316.5,3316.2,0.01897241]
[1642238838754,0.045463,3316.6,3316.2,3.15293487]
[1642238838955,0.045463,3316.7,3316.3,2.17272008]
[1642238839206,1.243,3318.2,3316.3,2.17272008]
[1642238839207,0.045463,3316.9,3316.4,1.13876427]
[1642238839505,0.045463,3316.9,3316.5,2.07539415]
[1642238839506,0.00454739,3316.8,3316.5,2.07539415]
[1642238839905,0.00397897,3316.7,3316.5,6.93279415]
[1642238840105,0.00397897,3316.7,3316.6,7.18401567]
[1642238840307,0.045463,3316.9,3316.6,7.18401567]
[1642238840505,0.045463,3316.9,3316.6,3.43401567]
[1642238840708,0.00454739,3316.8,3316.6,3.43401567]
[1642238840905,0.00454739,3316.8,3316.7,1.8320758]
[1642238841106,0.045463,3316.9,3316.7,1.8320758]
[1642238843055,1.15808668,3318.1,3317.1,1.33007956]
[1642238843255,0.045463,3317.4,3317.1,1.33007956]
[1642238843454,0.045463,3317.2,3316.8,3.9454]
[1642238843656,0.045463,3316.9,3316.8,3.9454]
[1642238844056,0.05057881,3316.9,3316.8,3.9454]
[1642238844556,0.00511581,3316.9,3316.8,3.9454]
[1642238844760,0.00511581,3316.9,3316.8,5.85797071]
[1642238845556,0.00511581,3316.9,3316.8,8.43574787]
[1642238846255,0.00511581,3316.9,3316.8,6.52317716]
[1642238847906,0.05057881,3316.9,3316.8,6.52317716]
[1642238851056,0.00511581,3316.9,3316.8,6.52317716]
[1642238854707,0.05057881,3316.9,3316.8,6.52317716]
[1642238856507,0.00511581,3316.9,3316.8,6.52317716]
[1642238857607,0.05057881,3316.9,3316.8,6.52317716]
[1642238858758,1e-08,3316.9,3316.8,6.52317716]
[1642238860364,1e-08,3316.9,3316.8,3.9454]
[1642238862912,0.01041419,3316.8,3316.2,0.13819997]
[1642238863107,0.93060001,3316.9,3316.0,3.7114]
[1642238863306,2.71876136,3316.8,3316.3,0.00341054]
[1642238863806,0.0764579,3316.8,3316.3,0.00341054]
[1642238864605,1.68466001,3316.9,3316.3,0.00341054]
[1642238865210,1.68466001,3316.9,3316.2,0.00397896]
[1642238865653,0.75406001,3316.9,3316.2,0.00397896]
[1642238867155,1e-08,3316.9,3316.2,0.00397896]
[1642238868454,1e-08,3316.9,3315.9,0.00568423]